fUSD/lending_fUSD_20260701
["ID","MTS","AMOUNT","RATE_DAILY","PERIOD"]
[426803453,1782840642000,-300.0,0.00033395,2]
[426803455,1782840642000,-300.0,0.00033395,2]
[426803454,1782840642000,-569.05020943,0.00033395,2]
[426803458,1782840642000,-300.0,0.00033395,2]
[426803456,1782840642000,-300.0,0.00033395,2]
[426803457,1782840642000,-300.0,0.00033395,2]
[426803460,1782840642000,-300.0,0.00033395,2]
[426803459,1782840642000,-300.75185383,0.00033395,2]
[426803401,1782840642000,-300.0,0.00033395,2]
[426803463,1782840642000,-584.74673027,0.00033395,2]
[426803462,1782840642000,-300.0,0.00033395,2]
[426803464,1782840642000,-300.0,0.00033395,2]
[426803437,1782840642000,-300.0,0.00033395,2]
[426803433,1782840642000,-300.0,0.00033395,2]
[426803461,1782840642000,-513.9940935,0.00033395,2]
[426803434,1782840642000,-300.0,0.00033395,2]
[426803435,1782840642000,-300.0,0.00033395,2]
[426803405,1782840642000,-300.0,0.00033395,2]
[426803403,1782840642000,-300.0,0.00033395,2]
[426803407,1782840642000,-300.0,0.00033395,2]
[426803408,1782840642000,-300.0,0.00033395,2]
[426803409,1782840642000,-300.0,0.00033395,2]
[426803406,1782840642000,-300.0,0.00033395,2]
[426803411,1782840642000,-300.0,0.00033395,2]
[426803413,1782840642000,-300.0,0.00033395,2]
[426803410,1782840642000,-495.31706617,0.00033395,2]
[426803415,1782840642000,-300.0,0.00033395,2]
[426803414,1782840642000,-300.0,0.00033395,2]
[426803417,1782840642000,-300.0,0.00033395,2]
[426803416,1782840642000,-607.8838736,0.00033395,2]
[426803404,1782840642000,-300.0,0.00033395,2]
[426803418,1782840642000,-300.0,0.00033395,2]
[426803419,1782840642000,-300.0,0.00033395,2]
[426803432,1782840642000,-300.0,0.00033395,2]
[426803429,1782840642000,-300.0,0.00033395,2]
[426803427,1782840642000,-303.39655282,0.00033395,2]
[426803428,1782840642000,-300.0,0.00033395,2]
[426803426,1782840642000,-300.0,0.00033395,2]
[426803430,1782840642000,-302.18244982,0.00033395,2]
[426803424,1782840642000,-300.0,0.00033395,2]
[426803422,1782840642000,-536.80437166,0.00033395,2]
[426803425,1782840642000,-730.16355908,0.00033395,2]
[426803421,1782840642000,-300.0,0.00033395,2]
[426803431,1782840642000,-300.0,0.00033395,2]
[426803423,1782840642000,-300.0,0.00033395,2]
[426803497,1782840643000,-600.0,0.00034247,120]
[426803499,1782840643000,-1500.0,0.000344,7]
[426803498,1782840643000,-350.0,0.00034358,2]
[426803495,1782840643000,-600.0,0.00034247,120]
[426803500,1782840643000,-3719.93568501,0.00034435,2]
[426803502,1782840643000,-3000.0,0.000345,30]
[426803504,1782840643000,-165.0,0.00034544,10]
[426803503,1782840643000,-302.40920944,0.000345,30]
[426803505,1782840643000,-165.0,0.00034544,10]
[426803506,1782840643000,-1000.0,0.00034602,30]
[426803501,1782840643000,-429.81210664,0.00034466,30]
[426803513,1782840643000,-1500.0,0.00034795,2]
[426803509,1782840643000,-342.91,0.00034699,2]
[426803508,1782840643000,-209.0,0.00034622,30]
[426803510,1782840643000,-359.8,0.00034702,3]
[426803512,1782840643000,-4264.0,0.00034742,10]
[426803511,1782840643000,-429.81210664,0.0003474,30]
[426803514,1782840643000,-504.0,0.00034811,10]
[426803516,1782840643000,-160.22769231,0.00034849,30]
[426803520,1782840643000,-5800.0,0.00034983,2]
[426803515,1782840643000,-160.22769232,0.00034849,30]
[426803521,1782840643000,-5800.0,0.00034992,2]
[426803496,1782840643000,-600.0,0.00034247,120]
[426803522,1782840643000,-5590.422,0.00035,2]
[426803507,1782840643000,-429.81210664,0.00034603,30]
[426803490,1782840643000,-3651.0,0.00034229,2]
[426803479,1782840643000,-504.0,0.00033958,9]
[426803493,1782840643000,-600.0,0.00034247,120]
[426803517,1782840643000,-429.81210664,0.00034877,30]
[426803465,1782840643000,-454.29401878,0.00033395,2]
[426803466,1782840643000,-300.0,0.00033395,2]
[426803468,1782840643000,-300.0,0.00033395,2]
[426803469,1782840643000,-300.0,0.00033395,2]
[426803470,1782840643000,-2843.0,0.00033406,10]
[426803471,1782840643000,-1000.0,0.00033611,30]
[426803472,1782840643000,-209.0,0.00033622,30]
[426803473,1782840643000,-152.0,0.00033624,7]
[426803475,1782840643000,-361.45,0.00033687,3]
[426803474,1782840643000,-159.49295075,0.00033636,2]
[426803476,1782840643000,-308.31963946,0.00033799,2]
[426803477,1782840643000,-209.16335268,0.00033912,2]
[426803481,1782840643000,-3000.0,0.00034,25]
[426803480,1782840643000,-3604.0,0.00034,30]
[426803484,1782840643000,-500.0,0.00034046,30]
[426803483,1782840643000,-714.0,0.00034,2]
[426803482,1782840643000,-1000.0,0.00034,20]
[426803485,1782840643000,-362.91475554,0.00034094,2]
[426803487,1782840643000,-279.0,0.00034229,2]
[426803486,1782840643000,-350.0,0.00034132,2]
[426803488,1782840643000,-1355.0,0.00034229,2]
[426803489,1782840643000,-1217.0,0.00034229,2]
[426803494,1782840643000,-600.0,0.00034247,120]
[426803492,1782840643000,-250.0,0.00034243,30]
[426803491,1782840643000,-5834.0,0.00034229,2]
[426803518,1782840643000,-158.59769754,0.00034926,5]
[426803478,1782840643000,-1000.0,0.0003394,30]
[426803523,1782840643000,-250.0,0.00035,30]
[426803555,1782840643000,-429.81210664,0.00035151,30]
[426803558,1782840643000,-185.73354233,0.000352,120]
[426803554,1782840643000,-160.047215,0.00035145,60]
[426803553,1782840643000,-325.47917,0.0003514,63]
[426803552,1782840643000,-325.47917,0.0003514,63]
[426803559,1782840643000,-184.45660883,0.000352,120]
[426803561,1782840643000,-160.22769232,0.00035233,30]
[426803560,1782840643000,-206.735424,0.000352,2]
[426803563,1782840643000,-161.0,0.00035256,2]
[426803562,1782840643000,-160.22769231,0.00035233,30]
[426803576,1782840643000,-266.34829737,0.000353,120]
[426803565,1782840643000,-618.90761392,0.00035262,2]
[426803564,1782840643000,-150.9105807,0.00035258,120]
[426803567,1782840643000,-194.0,0.00035262,7]
[426803569,1782840643000,-429.81210664,0.00035288,30]
[426803568,1782840643000,-232.6,0.00035262,2]
[426803570,1782840643000,-950.57487904,0.000353,30]
[426803571,1782840643000,-213.38018022,0.000353,120]
[426803572,1782840643000,-182.56670007,0.000353,120]
[426803574,1782840643000,-163.63126396,0.000353,120]
[426803573,1782840643000,-178.50147714,0.000353,120]
[426803575,1782840643000,-200.0,0.000353,120]
[426803577,1782840643000,-197.16220951,0.000353,120]
[426803578,1782840643000,-874.59253404,0.000353,120]
[426803519,1782840643000,-5800.0,0.00034975,2]
[426803556,1782840643000,-13830.59,0.00035188,2]
[426803557,1782840643000,-158.59769754,0.000352,5]
[426803566,1782840643000,-170.0,0.00035262,7]
[426803548,1782840643000,-308.31963946,0.000351,2]
[426803551,1782840643000,-325.47917,0.0003514,63]
[426803524,1782840643000,-3000.0,0.00035,30]
[426803525,1782840643000,-5800.0,0.00035,2]
[426803526,1782840643000,-22500.0,0.00035,2]
[426803531,1782840643000,-1500.0,0.00035,2]
[426803532,1782840643000,-1500.0,0.00035,2]
[426803533,1782840643000,-1500.0,0.00035,2]
[426803528,1782840643000,-1500.0,0.00035,2]
[426803527,1782840643000,-1500.0,0.00035,2]
[426803529,1782840643000,-1500.0,0.00035,2]
[426803535,1782840643000,-22499.99,0.00035,2]
[426803534,1782840643000,-308.5837708,0.00035,120]
[426803536,1782840643000,-160.0,0.00035,30]
[426803530,1782840643000,-1500.0,0.00035,2]
[426803537,1782840643000,-22500.0,0.00035,2]
[426803549,1782840643000,-22500.0,0.00035125,2]
[426803547,1782840643000,-22500.0,0.00035062,2]
[426803546,1782840643000,-155.04098883,0.00035049,2]
[426803544,1782840643000,-429.81210664,0.00035014,30]
[426803545,1782840643000,-200.0,0.00035046,10]
[426803539,1782840643000,-22499.99,0.00035,2]
[426803550,1782840643000,-325.47917,0.0003514,63]
[426803542,1782840643000,-22499.99,0.00035,2]
[426803541,1782840643000,-1500.0,0.00035,2]
[426803538,1782840643000,-160.0,0.00035,30]
[426803540,1782840643000,-22499.99,0.00035,2]
[426803543,1782840643000,-50090.0,0.00035,30]
[426803593,1782840644000,-327.16938857,0.00035322,5]
[426803597,1782840644000,-327.16938857,0.00035322,5]
[426803598,1782840644000,-327.16938857,0.00035322,5]
[426803596,1782840644000,-327.16938857,0.00035322,5]
[426803599,1782840644000,-327.16938857,0.00035322,5]
[426803600,1782840644000,-327.1693887,0.00035322,5]
[426803602,1782840644000,-111601.2912919,0.00035331,2]
[426803603,1782840644000,-177.1627846,0.00035331,2]
[426803605,1782840644000,-161.0731815,0.00035331,2]
[426803606,1782840644000,-1467.9478362,0.00035331,2]
[426803604,1782840644000,-3419.2310923,0.00035331,2]
[426803607,1782840644000,-244.59556489,0.00035332,2]
[426803601,1782840644000,-168.0,0.00035323,2]
[426803589,1782840644000,-226.0,0.00035314,2]
[426803580,1782840644000,-207.9949845,0.000353,120]
[426803591,1782840644000,-327.16938857,0.00035322,5]
[426803592,1782840644000,-327.16938857,0.00035322,5]
[426803595,1782840644000,-327.16938857,0.00035322,5]
[426803588,1782840644000,-171.95195904,0.000353,120]
[426803585,1782840644000,-187.19142874,0.000353,120]
[426803587,1782840644000,-272.84054802,0.000353,120]
[426803584,1782840644000,-186.16419052,0.000353,120]
[426803586,1782840644000,-176.6415168,0.000353,120]
[426803583,1782840644000,-172.35528424,0.000353,120]
[426803582,1782840644000,-247.2437588,0.000353,120]
[426803581,1782840644000,-189.78351314,0.000353,120]
[426803579,1782840644000,-221.38961909,0.000353,120]
[426803608,1782840644000,-1789.87,0.00035333,30]
[426803590,1782840644000,-327.16938857,0.00035322,5]
[426803609,1782840644000,-183.68868893,0.000354,2]
[426803594,1782840644000,-327.16938857,0.00035322,5]
[426803611,1782840644000,-200.0,0.000354,10]
[426803610,1782840644000,-589.261587,0.000354,18]
[426803640,1782840644000,-790.70620023,0.000355,120]
[426803638,1782840644000,-3112.9875261,0.000355,120]
[426803637,1782840644000,-300.0,0.00033395,2]
[426803635,1782840644000,-213.48,0.00024658,2]
[426803636,1782840644000,-7419.67780632,0.00033237,2]
[426803634,1782840644000,-2176.53896224,0.000355,120]
[426803633,1782840644000,-443.0,0.000355,120]
[426803632,1782840644000,-181302.22628003,0.000355,120]
[426803631,1782840644000,-300.0,0.00033395,2]
[426803630,1782840644000,-1346289.83387124,0.000355,120]
[426803628,1782840644000,-1000.0,0.00035499,120]
[426803627,1782840644000,-2000.0,0.00035499,5]
[426803625,1782840644000,-8847.0,0.00035498,5]
[426803639,1782840644000,-7625.8003797,0.000355,120]
[426803626,1782840644000,-3077.23380795,0.00035498,5]
[426803612,1782840644000,-11107.39727872,0.000354,2]
[426803614,1782840644000,-166.25957906,0.000354,7]
[426803613,1782840644000,-1506.569734,0.000354,18]
[426803615,1782840644000,-500.0,0.00035416,30]
[426803629,1782840644000,-2521.0,0.000355,5]
[426803617,1782840644000,-371.88278999,0.00035457,7]
[426803616,1782840644000,-429.81210664,0.00035425,30]
[426803620,1782840644000,-158.59769754,0.00035474,5]
[426803619,1782840644000,-600.0,0.0003547,2]
[426803621,1782840644000,-221.02393256,0.00035493,2]
[426803623,1782840644000,-325.47917,0.00035493,67]
[426803622,1782840644000,-325.47917,0.00035493,67]
[426803624,1782840644000,-151.0,0.00035497,14]
[426803618,1782840644000,-400.0,0.0003547,2]
[426803645,1782840645000,-636.02721702,0.000355,120]
[426803643,1782840645000,-151.0,0.0001529,2]
[426803644,1782840645000,-120.41361518,0.000355,120]
[426803642,1782840645000,-312.5925,0.000355,120]
[426803641,1782840645000,-1361.39009554,0.000355,120]
[426803649,1782840646000,-70.86553493,0.00033395,2]
[426803650,1782840646000,-229.13446507,0.00033395,2]
[426803648,1782840646000,-446.13298497,0.00033395,2]
[426803651,1782840646000,-1361.90835852,0.00033778,2]
[426803653,1782840646000,-17083.85837407,0.0003499,10]
[426803652,1782840646000,-6057.7694478,0.00033778,2]
[426803670,1782840878000,166.66,0.00027775,30]
[426803669,1782840878000,166.66,0.00027202,30]
[426803674,1782840879000,166.66,0.00030065,30]
[426803673,1782840879000,166.66,0.00029493,30]
[426803672,1782840879000,166.66,0.0002892,30]
[426803671,1782840879000,166.66,0.00028347,30]
[426803678,1782841310000,151.0,0.00028559,30]
[426803679,1782841312000,151.0,0.00029559,30]
[426803683,1782841603000,166.66,0.00022906,30]
[426803682,1782841603000,166.66,0.0002247,30]
[426803681,1782841603000,166.66,0.00022033,30]
[426803692,1782841831000,-600.0,0.00015952,2]
[426803715,1782841832000,-151.0,0.00016152,2]
[426803707,1782841832000,-150.0,0.00016052,2]
[426803711,1782841832000,-152.0,0.00016152,2]
[426803717,1782841832000,-152.0,0.00016152,2]
[426803714,1782841832000,-151.0,0.00016152,2]
[426803710,1782841832000,-153.0,0.00016152,2]
[426803716,1782841832000,-151.0,0.00016152,2]
[426803718,1782841832000,-151.0,0.00016152,2]
[426803708,1782841832000,-151.0,0.00016152,2]
[426803719,1782841832000,-150.0,0.00016238,2]
[426803713,1782841832000,-150.0,0.00016152,2]
[426803709,1782841832000,-151.0,0.00016152,2]
[426803703,1782841832000,-151.0,0.00016052,2]
[426803699,1782841832000,-152.0,0.00016052,2]
[426803698,1782841832000,-10000.0,0.00016052,12]
[426803706,1782841832000,-152.0,0.00016052,2]
[426803704,1782841832000,-150.0,0.00016052,2]
[426803701,1782841832000,-152.0,0.00016052,2]
[426803705,1782841832000,-151.0,0.00016052,2]
[426803700,1782841832000,-153.0,0.00016052,2]
[426803695,1782841832000,-600.0,0.00016008,2]
[426803696,1782841832000,-500.0,0.00016051,2]
[426803697,1782841832000,-279.67418305,0.00016051,2]
[426803694,1782841832000,-600.0,0.00016008,2]
[426803693,1782841832000,-150.0,0.00015952,2]
[426803712,1782841832000,-151.0,0.00016152,2]
[426803702,1782841832000,-152.0,0.00016052,2]
[426803720,1782841832000,-3309.9647,0.00016338,2]
[426803741,1782841832000,-775.90238232,0.00016438,2]
[426803724,1782841832000,-226.86712366,0.00016435,2]
[426803750,1782841832000,-504.09323324,0.00016438,2]
[426803748,1782841832000,-775.90238232,0.00016438,2]
[426803749,1782841832000,-775.90238232,0.00016438,2]
[426803742,1782841832000,-775.90238232,0.00016438,2]
[426803744,1782841832000,-775.90238232,0.00016438,2]
[426803738,1782841832000,-775.90238232,0.00016438,2]
[426803722,1782841832000,-373.23210712,0.00016435,2]
[426803737,1782841832000,-775.90238232,0.00016438,2]
[426803739,1782841832000,-775.90238232,0.00016438,2]
[426803740,1782841832000,-775.90238232,0.00016438,2]
[426803736,1782841832000,-775.90238232,0.00016438,2]
[426803746,1782841832000,-775.90238232,0.00016438,2]
[426803745,1782841832000,-775.90238232,0.00016438,2]
[426803743,1782841832000,-775.90238232,0.00016438,2]
[426803734,1782841832000,-775.90238232,0.00016438,2]
[426803747,1782841832000,-775.90238232,0.00016438,2]
[426803728,1782841832000,-782.94004565,0.00016438,2]
[426803726,1782841832000,-500.0,0.00016435,2]
[426803733,1782841832000,-775.90238232,0.00016438,2]
[426803723,1782841832000,-500.0,0.00016435,2]
[426803732,1782841832000,-775.90238232,0.00016438,2]
[426803721,1782841832000,-204.88041368,0.00016435,2]
[426803725,1782841832000,-367.66618821,0.00016435,2]
[426803731,1782841832000,-775.90238232,0.00016438,2]
[426803727,1782841832000,-302.18747442,0.00016435,2]
[426803730,1782841832000,-775.90238232,0.00016438,2]
[426803735,1782841832000,-775.90238232,0.00016438,2]
[426803729,1782841832000,-782.94004565,0.00016438,2]
[426803760,1782841833000,-775.90238232,0.00016438,2]
[426803761,1782841833000,-775.90238232,0.00016438,2]
[426803762,1782841833000,-775.90238232,0.00016438,2]
[426803759,1782841833000,-775.90238232,0.00016438,2]
[426803757,1782841833000,-775.90238232,0.00016438,2]
[426803758,1782841833000,-775.90238232,0.00016438,2]
[426803752,1782841833000,-775.90238232,0.00016438,2]
[426803753,1782841833000,-775.90238232,0.00016438,2]
[426803751,1782841833000,-271.80914908,0.00016438,2]
[426803763,1782841833000,-775.90238232,0.00016438,2]
[426803755,1782841833000,-775.90238232,0.00016438,2]
[426803754,1782841833000,-775.90238232,0.00016438,2]
[426803756,1782841833000,-775.90238232,0.00016438,2]
[426803772,1782841833000,-775.90238232,0.00016438,2]
[426803780,1782841833000,-775.90238232,0.00016438,2]
[426803767,1782841833000,-775.90238232,0.00016438,2]
[426803764,1782841833000,-529.01776281,0.00016438,2]
[426803786,1782841833000,-775.90238232,0.00016438,2]
[426803784,1782841833000,-775.90238232,0.00016438,2]
[426803774,1782841833000,-775.90238232,0.00016438,2]
[426803782,1782841833000,-775.90238232,0.00016438,2]
[426803778,1782841833000,-775.90238232,0.00016438,2]
[426803788,1782841833000,-298.03112801,0.00016438,2]
[426803770,1782841833000,-775.90238232,0.00016438,2]
[426803768,1782841833000,-775.90238232,0.00016438,2]
[426803769,1782841833000,-775.90238232,0.00016438,2]
[426803765,1782841833000,-246.88461951,0.00016438,2]
[426803766,1782841833000,-775.90238232,0.00016438,2]
[426803776,1782841833000,-775.90238232,0.00016438,2]
[426803771,1782841833000,-775.90238232,0.00016438,2]
[426803835,1782841838000,-772.74129853,0.00016438,2]
[426803832,1782841838000,-772.74129853,0.00016438,2]
[426803836,1782841838000,-772.7412985,0.00016438,2]
[426803844,1782841838000,-166.66,0.00020724,2]
[426803834,1782841838000,-772.74129853,0.00016438,2]
[426803823,1782841838000,-772.74129853,0.00016438,2]
[426803829,1782841838000,-772.74129853,0.00016438,2]
[426803828,1782841838000,-772.74129853,0.00016438,2]
[426803825,1782841838000,-772.74129853,0.00016438,2]
[426803837,1782841838000,-500.0,0.00016438,2]
[426803827,1782841838000,-772.74129853,0.00016438,2]
[426803842,1782841838000,-157.0,0.0002,2]
[426803848,1782841838000,-200.0,0.000212,2]
[426803841,1782841838000,-189.73524915,0.00017547,2]
[426803838,1782841838000,-500.0,0.00016712,2]
[426803840,1782841838000,-600.0,0.00017547,2]
[426803846,1782841838000,-166.66,0.00021161,2]
[426803850,1782841838000,-166.66,0.00021597,2]
[426803826,1782841838000,-772.74129853,0.00016438,2]
[426803855,1782841838000,-534.09,0.00022466,2]
[426803852,1782841838000,-5000.0,0.00021918,2]
[426803857,1782841838000,-5368.46,0.00022562,2]
[426803854,1782841838000,-153.29286302,0.00022466,2]
[426803853,1782841838000,-150.0,0.00021968,2]
[426803869,1782841838000,-150.0,0.00024278,2]
[426803839,1782841838000,-600.0,0.00017547,2]
[426803824,1782841838000,-772.74129853,0.00016438,2]
[426803817,1782841838000,-772.74129853,0.00016438,2]
[426803819,1782841838000,-772.74129853,0.00016438,2]
[426803797,1782841838000,-477.87125431,0.00016438,2]
[426803802,1782841838000,-775.90238232,0.00016438,2]
[426803799,1782841838000,-775.90238232,0.00016438,2]
[426803798,1782841838000,-775.90238232,0.00016438,2]
[426803804,1782841838000,-775.90238232,0.00016438,2]
[426803801,1782841838000,-775.90238232,0.00016438,2]
[426803805,1782841838000,-775.90238232,0.00016438,2]
[426803803,1782841838000,-775.90238232,0.00016438,2]
[426803800,1782841838000,-775.90238232,0.00016438,2]
[426803806,1782841838000,-775.90238232,0.00016438,2]
[426803818,1782841838000,-772.74129853,0.00016438,2]
[426803808,1782841838000,-772.74129853,0.00016438,2]
[426803830,1782841838000,-772.74129853,0.00016438,2]
[426803807,1782841838000,-772.74129853,0.00016438,2]
[426803809,1782841838000,-772.74129853,0.00016438,2]
[426803811,1782841838000,-772.74129853,0.00016438,2]
[426803816,1782841838000,-772.74129853,0.00016438,2]
[426803812,1782841838000,-772.74129853,0.00016438,2]
[426803813,1782841838000,-772.74129853,0.00016438,2]
[426803815,1782841838000,-772.74129853,0.00016438,2]
[426803814,1782841838000,-772.74129853,0.00016438,2]
[426803865,1782841838000,-250.0,0.00024278,2]
[426803820,1782841838000,-772.74129853,0.00016438,2]
[426803822,1782841838000,-772.74129853,0.00016438,2]
[426803831,1782841838000,-772.74129853,0.00016438,2]
[426803821,1782841838000,-772.74129853,0.00016438,2]
[426803810,1782841838000,-772.74129853,0.00016438,2]
[426803861,1782841838000,-3565.0,0.00024278,2]
[426803833,1782841838000,-772.74129853,0.00016438,2]
[426803863,1782841838000,-279.0,0.00024278,2]
[426803919,1782841838000,-510.63517744,0.00026159,2]
[426803923,1782841838000,-176.77734091,0.00026159,2]
[426803927,1782841838000,-431.37961669,0.00026159,2]
[426803929,1782841838000,-501.53407968,0.00026159,2]
[426803932,1782841838000,-246.41037025,0.00026159,2]
[426803936,1782841838000,-563.64634589,0.00026159,2]
[426803935,1782841838000,-425.44238519,0.00026159,2]
[426803938,1782841838000,-173.10177453,0.00026159,2]
[426803948,1782841838000,-241.0,0.00026521,2]
[426803937,1782841838000,-238.30973997,0.00026159,2]
[426803950,1782841838000,-551.86819256,0.00026843,2]
[426803952,1782841838000,-756.69787109,0.0002698,2]
[426803934,1782841838000,-178.08500248,0.00026159,2]
[426803944,1782841838000,-265.45274645,0.0002616,2]
[426803956,1782841838000,-3565.0,0.00027278,2]
[426803954,1782841838000,-504.0,0.00027137,2]
[426803941,1782841838000,-252.12984328,0.00026159,2]
[426803946,1782841838000,-301.96346789,0.00026161,2]
[426803940,1782841838000,-435.88250507,0.00026159,2]
[426803963,1782841838000,-6088.0,0.00027278,2]
[426803961,1782841838000,-216.0,0.00027278,2]
[426803959,1782841838000,-150.0,0.00027278,2]
[426803965,1782841838000,-154.15981973,0.00027297,2]
[426803967,1782841838000,-182.50187625,0.00027297,2]
[426803969,1782841838000,-500.0,0.00027396,2]
[426803859,1782841838000,-467.33,0.0002411,2]
[426803942,1782841838000,-236.19072332,0.0002616,2]
[426803925,1782841838000,-320.26248553,0.00026159,2]
[426803939,1782841838000,-216.76376625,0.00026159,2]
[426803933,1782841838000,-262.78276709,0.00026159,2]
[426803867,1782841838000,-150.0,0.00024278,2]
[426803931,1782841838000,-556.59651388,0.00026159,2]
[426803871,1782841838000,-216.0,0.00024278,2]
[426803882,1782841838000,-185.53217129,0.00024768,2]
[426803884,1782841838000,-155.04098883,0.00024967,2]
[426803886,1782841838000,-180.64,0.00024969,2]
[426803873,1782841838000,-6088.0,0.00024278,2]
[426803878,1782841838000,-151.50972542,0.00024767,2]
[426803875,1782841838000,-213.48,0.00024658,2]
[426803877,1782841838000,-170.21172581,0.00024767,2]
[426803892,1782841838000,-340.42345162,0.00025602,2]
[426803888,1782841838000,-150.98173394,0.00025602,2]
[426803890,1782841838000,-257.79043598,0.00025602,2]
[426803880,1782841838000,-167.17802656,0.00024768,2]
[426803896,1782841838000,-215.68980834,0.00025603,2]
[426803921,1782841838000,-454.52917625,0.00026159,2]
[426803894,1782841838000,-303.01945083,0.00025602,2]
[426803913,1782841838000,-333.8,0.00026027,7]
[426803911,1782841838000,-142175.65,0.00026,2]
[426803917,1782841838000,-301.89680729,0.00026159,2]
[426803909,1782841838000,-756.69787112,0.00025927,2]
[426803915,1782841838000,-515.58087195,0.00026158,2]
[426803904,1782841838000,-217.94125253,0.00025603,2]
[426803903,1782841838000,-281.82317295,0.00025603,2]
[426803898,1782841838000,-334.35605312,0.00025603,2]
[426803901,1782841838000,-371.06434259,0.00025603,2]
[426803907,1782841838000,-2500.0,0.000259,2]
[426804056,1782841839000,-155.04098883,0.00029448,2]
[426804058,1782841839000,-226.88,0.00029479,2]
[426804046,1782841839000,-500.0,0.00029223,2]
[426804035,1782841839000,-756.69787109,0.00028032,2]
[426804054,1782841839000,-170.16,0.00029315,2]
[426804040,1782841839000,-504.0,0.00029025,4]
[426804038,1782841839000,-1321.41,0.00028538,7]
[426804044,1782841839000,-181.46308475,0.00029203,2]
[426804042,1782841839000,-756.69787109,0.00029085,2]
[426804037,1782841839000,-504.0,0.00028081,3]
[426804048,1782841839000,-500.0,0.00029223,2]
[426804052,1782841839000,-150.0,0.00029223,2]
[426804050,1782841839000,-360.77383432,0.00029223,2]
[426804094,1782841839000,-6088.0,0.00030278,2]
[426804062,1782841839000,-1187.83,0.00029555,7]
[426804069,1782841839000,-2468.28,0.0002989,2]
[426804065,1782841839000,-170.16,0.00029589,2]
[426804081,1782841839000,-800.0,0.0003,2]
[426804073,1782841839000,-504.0,0.00029969,5]
[426804071,1782841839000,-1301.12264038,0.000299,2]
[426804067,1782841839000,-170.16,0.00029863,2]
[426804077,1782841839000,-182.50187622,0.00029998,2]
[426804060,1782841839000,-150.0,0.00029534,2]
[426804075,1782841839000,-226.88,0.00029973,2]
[426804083,1782841839000,-800.0,0.0003,2]
[426804025,1782841839000,-735.76268242,0.00027397,2]
[426804079,1782841839000,-800.0,0.0003,2]
[426804027,1782841839000,-500.0,0.000275,7]
[426803979,1782841839000,-680.0,0.00027397,5]
[426804028,1782841839000,-1355.97,0.00027522,7]
[426804085,1782841839000,-400.0,0.0003007,2]
[426803971,1782841839000,-500.0,0.00027396,2]
[426803977,1782841839000,-1500.0,0.00027397,2]
[426803975,1782841839000,-225.79831344,0.00027397,7]
[426803973,1782841839000,-500.0,0.00027396,2]
[426803981,1782841839000,-150.0,0.00027397,5]
[426803983,1782841839000,-672.0,0.00027397,5]
[426803985,1782841839000,-682.0,0.00027397,5]
[426803987,1782841839000,-666.0,0.00027397,5]
[426803989,1782841839000,-671.0,0.00027397,5]
[426804001,1782841839000,-677.0,0.00027397,5]
[426803990,1782841839000,-150.0,0.00027397,5]
[426803997,1782841839000,-687.0,0.00027397,5]
[426803993,1782841839000,-667.0,0.00027397,5]
[426804003,1782841839000,-244.0,0.00027397,5]
[426803995,1782841839000,-153.0,0.00027397,5]
[426803999,1782841839000,-153.0,0.00027397,5]
[426804004,1782841839000,-684.0,0.00027397,5]
[426804007,1782841839000,-665.0,0.00027397,5]
[426804008,1782841839000,-686.0,0.00027397,5]
[426804016,1782841839000,-26901.17,0.00027397,10]
[426804014,1782841839000,-665.0,0.00027397,5]
[426804012,1782841839000,-681.0,0.00027397,5]